bitfinex/quotes_BTCUSD_20250328
["timestamp","ask_amount","ask_price","bid_price","bid_amount"]
[1743133191068,1.00380976,86960.0,86959.0,0.74142117]
[1743133191470,1.00480976,86960.0,86959.0,0.74142117]
[1743133194579,0.9867788,86960.0,86959.0,0.74142117]
[1743133197625,0.9867788,86960.0,86959.0,0.97141417]
[1743133199016,1.00480979,86960.0,86959.0,0.97141417]
[1743133201962,1.00480979,86960.0,86959.0,0.74142117]
[1743133202170,1.00480979,86960.0,86959.0,0.68739015]
[1743133202463,1.00480979,86960.0,86959.0,0.61179015]
[1743133204502,0.9867788,86960.0,86959.0,0.61179015]
[1743133206850,0.9867788,86960.0,86959.0,0.84178315]
[1743133207203,0.9867788,86960.0,86959.0,0.61179015]
[1743133208954,1.00480981,86960.0,86959.0,0.61179015]
[1743133209461,1.00480981,86960.0,86959.0,0.84178315]
[1743133209689,1.00480981,86960.0,86959.0,0.61179015]
[1743133214595,0.9867788,86960.0,86959.0,0.61179015]
[1743133217728,1.00480992,86960.0,86959.0,0.61179015]
[1743133222837,1.88277492,86960.0,86959.0,0.5972493]
[1743133223035,2.22422956,86960.0,86959.0,0.0001693]
[1743133223656,2.27332956,86960.0,86959.0,0.0001693]
[1743133224321,2.29382785,86960.0,86959.0,0.0001693]
[1743133224472,2.27379673,86960.0,86959.0,0.0001693]
[1743133224682,2.27579673,86960.0,86959.0,0.0001693]
[1743133225093,1.59213924,86960.0,86959.0,0.0001693]
[1743133225263,3.00273273,86960.0,86959.0,0.0001693]
[1743133225468,2.99873273,86960.0,86959.0,0.0001693]
[1743133225984,3.00173273,86960.0,86959.0,0.0001693]
[1743133226179,3.03651869,86960.0,86959.0,0.0001693]
[1743133226385,3.11599037,86960.0,86959.0,0.0001693]
[1743133226612,3.15376205,86960.0,86959.0,0.0001693]
[1743133228501,3.11899037,86960.0,86959.0,0.0001693]
[1743133228723,3.00473273,86960.0,86959.0,0.0001693]
[1743133228930,3.02276651,86960.0,86959.0,0.0001693]
[1743133229615,3.05750592,86960.0,86959.0,0.0001693]
[1743133230028,3.02276651,86960.0,86959.0,0.0001693]
[1743133230494,3.00126822,86960.0,86959.0,0.0001693]
[1743133230991,2.99326822,86960.0,86959.0,0.0001693]
[1743133231180,3.11252586,86960.0,86959.0,0.0001693]
[1743133231308,3.11652586,86960.0,86959.0,0.0001693]
[1743133233599,3.13795362,86960.0,86959.0,0.0001693]
[1743133233808,3.11991984,86960.0,86959.0,0.0001693]
[1743133235611,3.0056622,86960.0,86959.0,0.0001693]
[1743133237038,3.02369615,86960.0,86959.0,0.0001693]
[1743133238295,1.57829815,86960.0,86959.0,0.0001693]
[1743133238505,1.58329815,86960.0,86959.0,0.0001693]
[1743133238722,3.02869615,86960.0,86959.0,0.0001693]
[1743133239073,3.14295379,86960.0,86959.0,0.0001693]
[1743133239300,3.02869615,86960.0,86959.0,0.0001693]
[1743133239807,3.15221615,86960.0,86959.0,0.0001693]
[1743133240054,3.15721615,86960.0,86959.0,0.0001693]
[1743133240523,3.14821615,86960.0,86959.0,0.0001693]
[1743133240911,3.15821615,86960.0,86959.0,0.0001693]
[1743133241301,3.15321615,86960.0,86959.0,0.0001693]
[1743133242941,3.13178839,86960.0,86959.0,0.0001693]
[1743133243555,3.24604603,86960.0,86959.0,0.0001693]
[1743133244471,3.13178839,86960.0,86959.0,0.0001693]
[1743133244615,3.11375444,86960.0,86959.0,0.0001693]
[1743133245254,3.13518228,86960.0,86959.0,0.0001693]
[1743133247491,3.15321624,86960.0,86959.0,0.0001693]
[1743133248659,3.1317884,86960.0,86959.0,0.0001693]
[1743133249084,3.15323476,86960.0,86959.0,0.0001693]
[1743133249412,3.21358989,86960.0,86959.0,0.0001693]
[1743133251498,3.24358989,86960.0,86959.0,0.0001693]
[1743133251703,3.27832254,86960.0,86959.0,0.0001693]
[1743133252723,3.21796741,86960.0,86959.0,0.0001693]
[1743133254166,1.77256941,86960.0,86959.0,0.0001693]
[1743133254489,3.21796741,86960.0,86959.0,0.0001693]
[1743133254675,3.19993345,86960.0,86959.0,0.0001693]
[1743133255183,3.06641345,86960.0,86959.0,0.0001693]
[1743133255392,3.19993345,86960.0,86959.0,0.0001693]
[1743133257182,3.04141345,86960.0,86959.0,0.0001693]
[1743133257389,3.08723345,86960.0,86959.0,0.0001693]
[1743133257563,2.95871345,86960.0,86959.0,0.0001693]
[1743133257763,3.0561679,86960.0,86959.0,0.0001693]
[1743133257969,2.9276479,86960.0,86959.0,0.0001693]
[1743133258168,3.0561679,86960.0,86959.0,0.0001693]
[1743133260360,3.17042554,86960.0,86959.0,0.0001693]
[1743133261746,3.0561679,86960.0,86959.0,0.0001693]
[1743133264685,1.59273545,86960.0,86959.0,0.0001693]
[1743133264864,3.03813345,86960.0,86959.0,0.0001693]
[1743133266440,2.85420845,86960.0,86959.0,0.0001693]
[1743133266890,2.61143081,86960.0,86959.0,0.0001693]
[1743133267099,2.61143081,86960.0,86959.0,0.0786693]
[1743133267100,1.14374516,86960.0,86959.0,0.0786693]
[1743133267340,1.14374516,86960.0,86959.0,0.1283693]
[1743133267565,1.44374516,86960.0,86959.0,0.1283693]
[1743133268757,1.4222988,86960.0,86959.0,0.1283693]
[1743133268964,1.44033144,86960.0,86959.0,0.1283693]
[1743133269339,1.31181144,86960.0,86959.0,0.1283693]
[1743133269780,1.31181144,86960.0,86959.0,0.14291015]
[1743133269981,1.31181144,86960.0,86959.0,0.15574708]
[1743133270381,1.31181144,86960.0,86959.0,0.14291015]
[1743133270558,1.30681144,86960.0,86959.0,0.0786693]
[1743133271116,1.31181144,86960.0,86959.0,0.0786693]
[1743133271235,1.30681144,86960.0,86959.0,0.0786693]
[1743133271656,1.31181144,86960.0,86959.0,0.0786693]
[1743133271914,1.30681144,86960.0,86959.0,0.0786693]
[1743133272340,1.30581144,86960.0,86959.0,0.0786693]
[1743133272518,1.31081144,86960.0,86959.0,0.0786693]
[1743133274132,1.2927788,86960.0,86959.0,0.09321015]
[1743133275553,0.9927788,86960.0,86959.0,0.09321015]
[1743133278365,1.01081032,86960.0,86959.0,0.09321015]
[1743133284545,0.9927788,86960.0,86959.0,0.09321015]
[1743133284975,0.9927788,86960.0,86959.0,0.12668156]
[1743133285708,0.9877788,86960.0,86959.0,0.12668156]
[1743133285948,0.9907788,86960.0,86959.0,0.12668156]
[1743133286300,0.9867788,86960.0,86959.0,0.12668156]
[1743133287513,0.9867788,86960.0,86959.0,0.2690666]
[1743133287714,0.9887788,86960.0,86959.0,0.26676679]
[1743133288840,0.9857788,86960.0,86959.0,0.26676679]
[1743133289033,1.00580984,86960.0,86959.0,0.26676679]
[1743133289230,1.00380984,86960.0,86959.0,0.26676679]
[1743133289764,1.00380984,86960.0,86959.0,0.38102443]
[1743133289970,1.00480984,86960.0,86959.0,0.38102443]
[1743133294318,1.00480984,86960.0,86959.0,0.40429981]
[1743133294659,0.9867788,86960.0,86959.0,0.40429981]
[1743133298972,0.9867788,86960.0,86959.0,0.11648553]
[1743133299207,0.9867788,86960.0,86959.0,0.24470315]
[1743133299444,0.9867788,86960.0,86959.0,0.2416613]
[1743133299645,0.9867788,86960.0,86959.0,0.25620215]
[1743133300054,0.9867788,86960.0,86959.0,0.33210215]
[1743133300578,0.9867788,86960.0,86959.0,0.44635979]
[1743133303289,0.9867788,86960.0,86959.0,0.56061743]
[1743133307857,1.00480864,86960.0,86959.0,0.56061743]
[1743133309257,1.00480864,86960.0,86959.0,0.35591894]
[1743133309417,1.00480864,86960.0,86959.0,0.37045979]
[1743133309623,1.00480864,86960.0,86959.0,0.25620215]
[1743133314015,1.00480864,86960.0,86959.0,0.24470315]
[1743133314672,0.9867788,86960.0,86959.0,0.24470315]
[1743133315098,0.9867788,86960.0,86959.0,0.01471015]
[1743133315467,0.9867788,86960.0,86959.0,0.0001693]
[1743133315667,1.0355788,86960.0,86959.0,0.0001693]
[1743133317716,1.05360931,86960.0,86959.0,0.0001693]
[1743133318694,1.67390695,86960.0,86959.0,0.0001693]
[1743133320054,3.23356259,86960.0,86959.0,0.0001693]
[1743133320352,2.10146995,86960.0,86959.0,0.0001693]
[1743133321128,2.09946995,86960.0,86959.0,0.0001693]
[1743133321339,2.10246995,86960.0,86959.0,0.0001693]
[1743133321540,2.10546995,86960.0,86959.0,0.0001693]
[1743133321746,1.67390695,86960.0,86959.0,0.0001693]
[1743133321958,3.23356259,86960.0,86959.0,0.0001693]
[1743133322813,3.25503016,86960.0,86959.0,0.0001693]
[1743133323399,3.25903016,86960.0,86959.0,0.0001693]
[1743133323877,3.14477252,86960.0,86959.0,0.0001693]
[1743133324567,3.12674201,86960.0,86959.0,0.0001693]
[1743133324774,3.11974201,86960.0,86959.0,0.0001693]
[1743133325165,3.12974201,86960.0,86959.0,0.0001693]
[1743133325327,3.10827444,86960.0,86959.0,0.0001693]
[1743133328066,3.12970571,86960.0,86959.0,0.0001693]
[1743133329080,3.14773962,86960.0,86959.0,0.0001693]
[1743133329460,3.22575055,86960.0,86959.0,0.0001693]
[1743133331607,3.20431928,86960.0,86959.0,0.0001693]
[1743133332321,1.75892128,86960.0,86959.0,0.0001693]
[1743133332744,3.20431928,86960.0,86959.0,0.0001693]
[1743133334595,3.20769694,86960.0,86959.0,0.0001693]
[1743133335642,3.12968601,86960.0,86959.0,0.0001693]
[1743133337220,3.14772095,86960.0,86959.0,0.0001693]
[1743133347005,3.14776095,86960.0,86959.0,0.0001693]
[1743133348039,3.12972601,86960.0,86959.0,0.0001693]
[1743133348538,3.16446174,86960.0,86959.0,0.0001693]
[1743133348675,3.20146541,86960.0,86959.0,0.0001693]
[1743133351003,3.21950016,86960.0,86959.0,0.0001693]
[1743133351350,3.31033461,86960.0,86959.0,0.0001693]
[1743133352130,0.025,86952.0,86944.0,0.0001694]
[1743133352284,0.3,86950.0,86944.0,0.0001694]
[1743133352479,0.3,86948.0,86944.0,0.0001694]
[1743133352711,0.3,86946.0,86944.0,0.0001694]
[1743133352926,2.02287137,86945.0,86944.0,0.0001694]
[1743133353443,0.59888494,86945.0,86944.0,0.0001694]
[1743133353646,2.13371085,86945.0,86944.0,0.0001694]
[1743133355350,2.13871085,86945.0,86944.0,0.0001694]
[1743133355698,3.11715085,86945.0,86944.0,0.0001694]
[1743133355894,3.12215085,86945.0,86944.0,0.0001694]
[1743133356194,3.12715085,86945.0,86944.0,0.0001694]
[1743133359066,3.14518784,86945.0,86944.0,0.0001694]
[1743133364877,3.12715085,86945.0,86944.0,0.0001694]
[1743133367800,3.14518808,86945.0,86944.0,0.0001694]
[1743133368847,3.01670808,86945.0,86944.0,0.0001694]
[1743133369051,1.48472244,86945.0,86944.0,0.0001694]
[1743133369251,1.38518344,86945.0,86944.0,0.0772694]
[1743133369382,1.68518344,86945.0,86944.0,0.0772694]
[1743133370010,1.92284436,86945.0,86944.0,0.0772694]
[1743133370411,1.90143279,86945.0,86944.0,0.0772694]
[1743133370652,1.54913815,86945.0,86944.0,0.0772694]
[1743133370851,1.67761815,86945.0,86944.0,0.0772694]
[1743133372321,1.69909067,86945.0,86944.0,0.0772694]
[1743133372815,1.57061067,86945.0,86944.0,0.0772694]
[1743133373137,1.69909067,86945.0,86944.0,0.0772694]
[1743133374554,1.68105344,86945.0,86944.0,0.0772694]
[1743133377579,1.69908886,86945.0,86944.0,0.0772694]
[1743133379178,1.69908886,86945.0,86944.0,0.0001694]
[1743133380283,2.25285714,86945.0,86944.0,0.0001694]
[1743133380980,2.28763998,86945.0,86944.0,0.0001694]
[1743133381183,2.25285714,86945.0,86944.0,0.0001694]
[1743133381626,2.1385995,86945.0,86944.0,0.0001694]
[1743133382252,3.2587445,86945.0,86944.0,0.0001694]
[1743133384709,3.24070908,86945.0,86944.0,0.0001694]
[1743133385408,1.79531108,86945.0,86944.0,0.0001694]
[1743133385549,3.32380908,86945.0,86944.0,0.0001694]
[1743133385754,3.35860448,86945.0,86944.0,0.0001694]
[1743133385961,3.47286212,86945.0,86944.0,0.0001694]
[1743133386626,3.52046212,86945.0,86944.0,0.0001694]
[1743133387423,3.43736212,86945.0,86944.0,0.0001694]
[1743133388305,3.32310448,86945.0,86944.0,0.0001694]
[1743133389084,3.34114075,86945.0,86944.0,0.0001694]
[1743133390130,3.21266075,86945.0,86944.0,0.0001694]
[1743133390357,3.29354075,86945.0,86944.0,0.0001694]
[1743133390984,3.20906775,86945.0,86944.0,0.0001694]
[1743133392032,3.19532975,86945.0,86944.0,0.0001694]
[1743133392235,3.16985575,86945.0,86944.0,0.0001694]
[1743133393037,3.14838323,86945.0,86944.0,0.0001694]
[1743133393270,2.90564559,86945.0,86944.0,0.0754694]
[1743133393444,1.67761719,86945.0,86944.0,0.0754694]
[1743133394189,1.67761719,86945.0,86944.0,0.0001694]
[1743133394606,1.65958092,86945.0,86944.0,0.0001694]
[1743133395500,1.68106844,86945.0,86944.0,0.0001694]
[1743133397011,1.65958092,86945.0,86944.0,0.0001694]
[1743133397645,1.67761661,86945.0,86944.0,0.0001694]
[1743133401649,1.79187425,86945.0,86944.0,0.0001694]
[1743133403820,1.77383856,86945.0,86944.0,0.0001694]
[1743133404385,2.21229756,86945.0,86944.0,0.0001694]
[1743133405263,2.02411756,86945.0,86944.0,0.0001694]
[1743133406007,1.96044656,86945.0,86944.0,0.0001694]
[1743133406562,1.77379856,86945.0,86944.0,0.0001694]
[1743133406735,1.92689856,86945.0,86944.0,0.0001694]
[1743133407283,1.77379856,86945.0,86944.0,0.0001694]
[1743133407893,1.91415756,86945.0,86944.0,0.0001694]
[1743133408012,1.77379856,86945.0,86944.0,0.0001694]
[1743133408414,1.79183435,86945.0,86944.0,0.0001694]
[1743133408709,1.67757671,86945.0,86944.0,0.0001694]
[1743133409211,2.48567235,86945.0,86944.0,0.0001694]
[1743133409892,2.39073135,86945.0,86944.0,0.0001694]
[1743133411292,2.30996435,86945.0,86944.0,0.0001694]
[1743133411520,1.78041371,86945.0,86944.0,0.0001694]
[1743133411748,1.67757671,86945.0,86944.0,0.0001694]
[1743133412136,1.54913671,86945.0,86944.0,0.0001694]
[1743133413268,1.53913671,86945.0,86944.0,0.0001694]
[1743133413426,1.54413671,86945.0,86944.0,0.0001694]
[1743133413608,1.54813671,86945.0,86944.0,0.0001694]
[1743133414790,1.64435856,86945.0,86944.0,0.0001694]
[1743133416478,1.53010092,86945.0,86944.0,0.0001694]
[1743133417747,1.54813689,86945.0,86944.0,0.0001694]
[1743133421585,1.66239453,86945.0,86944.0,0.0001694]
[1743133424661,1.64435856,86945.0,86944.0,0.0001694]
[1743133427865,1.66239459,86945.0,86944.0,0.0001694]
[1743133431794,1.77665223,86945.0,86944.0,0.0001694]
[1743133432937,1.66239459,86945.0,86944.0,0.0001694]
[1743133434689,1.64435856,86945.0,86944.0,0.0001694]
[1743133435808,1.53010092,86945.0,86944.0,0.0001694]
[1743133436803,1.52110092,86945.0,86944.0,0.0001694]
[1743133437199,1.53010092,86945.0,86944.0,0.0001694]
[1743133437609,1.5431359,86945.0,86944.0,0.0001694]
[1743133438017,1.5471359,86945.0,86944.0,0.0001694]
[1743133439623,1.5501359,86945.0,86944.0,0.0001694]
[1743133442658,1.5461359,86945.0,86944.0,0.0001694]
[1743133442864,1.5391359,86945.0,86944.0,0.0001694]
[1743133443132,1.5411359,86945.0,86944.0,0.0001694]
[1743133443539,1.5411359,86945.0,86944.0,0.01471025]
[1743133443723,1.5451359,86945.0,86944.0,0.01471025]
[1743133444444,1.52310092,86945.0,86944.0,0.02621125]
[1743133444747,1.52310092,86945.0,86944.0,0.10898424]
[1743133445882,1.52110092,86945.0,86944.0,0.10898424]
[1743133446087,1.52510092,86945.0,86944.0,0.10898424]
[1743133446314,1.52710092,86945.0,86944.0,0.10898424]
[1743133447719,1.54513536,86945.0,86944.0,0.10898424]
[1743133450374,1.54513536,86945.0,86944.0,0.09748324]
[1743133451332,1.24513536,86945.0,86944.0,0.10898424]
[1743133452180,1.24513536,86945.0,86944.0,0.30304188]
[1743133452380,1.24513536,86945.0,86944.0,0.35224188]
[1743133453023,1.24513536,86945.0,86944.0,0.37531353]
[1743133453459,1.24513536,86945.0,86944.0,0.79087493]
[1743133454440,1.24113536,86945.0,86944.0,0.79087493]
[1743133454648,1.22310092,86945.0,86944.0,0.79087493]
[1743133455300,1.22610092,86945.0,86944.0,0.79087493]
[1743133455687,1.22410092,86945.0,86944.0,0.79087493]
[1743133455895,1.22110092,86945.0,86944.0,0.79087493]
[1743133456140,1.22210092,86945.0,86944.0,0.79087493]
[1743133456370,1.22410092,86945.0,86944.0,0.79087493]
[1743133457004,1.22410092,86945.0,86944.0,0.91927493]
[1743133458857,1.22410092,86945.0,86944.0,0.79087493]
[1743133459072,1.24213285,86945.0,86944.0,0.91923493]
[1743133459828,1.24113285,86945.0,86944.0,0.91923493]
[1743133460080,1.23913285,86945.0,86944.0,0.91923493]
[1743133461100,1.23913285,86945.0,86944.0,0.93071831]
[1743133464679,1.22110092,86945.0,86944.0,0.93071831]
[1743133465066,1.22110092,86945.0,86944.0,0.90764666]
[1743133466925,1.22110092,86945.0,86944.0,1.50460666]
[1743133467923,1.23913282,86945.0,86944.0,1.50460666]
[1743133468661,1.23913282,86945.0,86944.0,1.37624666]
[1743133470739,1.23913282,86945.0,86944.0,1.32704666]
[1743133474560,1.22110092,86945.0,86944.0,1.32704666]
[1743133477747,1.23913289,86945.0,86944.0,1.32704666]
[1743133481630,1.23913289,86945.0,86944.0,1.24724666]
[1743133482190,1.23913289,86945.0,86944.0,1.03567518]
[1743133482391,1.23913289,86945.0,86944.0,1.14993282]
[1743133482634,1.23913289,86945.0,86944.0,1.16447367]
[1743133484748,1.22110092,86945.0,86944.0,1.16447367]
[1743133487606,1.23913266,86945.0,86944.0,1.16447367]
[1743133487978,1.23913266,86945.0,86944.0,0.86316991]
[1743133493808,1.22110092,86945.0,86944.0,0.86316991]
[1743133497184,1.23913264,86945.0,86944.0,0.86316991]
[1743133497852,1.23913264,86945.0,86944.0,0.88647678]
[1743133504592,1.22110092,86945.0,86944.0,0.86316991]
[1743133508133,1.23913288,86945.0,86944.0,0.86316991]
[1743133516704,1.22110092,86945.0,86944.0,0.86316991]
[1743133519973,1.23913272,86945.0,86944.0,0.86316991]
[1743133522320,1.23913272,86945.0,86944.0,1.27873131]
[1743133524061,0.0003388,86959.0,86944.0,1.27873131]
[1743133524062,0.0003388,86959.0,86958.0,0.241495]
[1743133524264,0.0003388,86959.0,86958.0,0.37029349]
[1743133525985,0.0003388,86959.0,86958.0,0.78585489]
[1743133526398,1.0003388,86959.0,86958.0,0.78585489]
[1743133531553,1.0003388,86959.0,86958.0,0.86165489]
[1743133533258,1.0003388,86959.0,86958.0,0.88415686]
[1743133533833,1.0003388,86959.0,86958.0,0.89258041]
[1743133538395,1.0003388,86959.0,86958.0,0.81678041]
[1743133538803,1.01836933,86959.0,86958.0,1.41366041]
[1743133540326,1.01836933,86959.0,86958.0,1.0239404]
[1743133540327,1.14206933,86959.0,86958.0,1.0239404]
[1743133540527,1.14206933,86959.0,86958.0,1.0124414]
[1743133541099,1.14206933,86959.0,86958.0,1.15273889]
[1743133541525,1.06516933,86959.0,86958.0,1.15273889]
[1743133542908,1.01836933,86959.0,86958.0,1.15273889]
[1743133544579,1.0003388,86959.0,86958.0,1.15273889]
[1743133549195,1.01836986,86959.0,86958.0,1.15273889]
[1743133553786,1.0003388,86959.0,86958.0,1.15273889]
[1743133557204,1.01836978,86959.0,86958.0,1.15273889]
[1743133560670,1.01836978,86959.0,86958.0,1.16408851]
[1743133564474,1.0003388,86959.0,86958.0,1.16408851]
[1743133567667,1.01836963,86959.0,86958.0,1.04983087]
[1743133567866,1.14616963,86959.0,86958.0,0.44160125]
[1743133572963,1.14616963,86959.0,86958.0,0.011499]
[1743133574472,1.1281388,86959.0,86958.0,0.011499]
[1743133576689,1.1281388,86959.0,86957.0,0.229996]
[1743133577014,1.1281388,86959.0,86957.0,0.241495]
[1743133577473,1.14617037,86959.0,86957.0,0.241495]
[1743133577934,1.14617037,86959.0,86957.0,0.242495]
[1743133579230,1.14617037,86959.0,86957.0,0.241495]
[1743133579597,1.01837037,86959.0,86955.0,0.01454085]
[1743133579762,0.1264,86958.0,86957.0,0.01554085]
[1743133580139,0.4264,86958.0,86957.0,0.01554085]
[1743133580488,0.4264,86958.0,86957.0,0.01454085]
[1743133580691,1.4264,86958.0,86957.0,0.01454085]
[1743133582685,1.4264,86958.0,86957.0,0.001]
[1743133583332,3.0570296,86958.0,86957.0,0.001]
[1743133583762,3.0570296,86958.0,86944.0,0.0001694]
[1743133583763,0.427,86957.0,86944.0,0.0001694]
[1743133583940,0.3,86955.0,86944.0,0.0001694]
[1743133584148,0.3,86953.0,86944.0,0.0001694]
[1743133584351,0.0798,86949.0,86944.0,0.0001694]
[1743133584525,0.046,86946.0,86944.0,0.0001694]
[1743133585606,0.124,86946.0,86944.0,0.0001694]
[1743133585816,1.124,86946.0,86944.0,0.0001694]
[1743133586441,1.124,86946.0,86945.0,0.0011694]
[1743133586644,1.125,86946.0,86945.0,0.0001694]
[1743133587399,1.128,86946.0,86945.0,0.0001694]
[1743133588565,1.14603556,86946.0,86945.0,0.0001694]
[1743133588770,1.72291384,86946.0,86945.0,0.0001694]
[1743133588985,1.6086562,86946.0,86945.0,0.0001694]
[1743133594542,1.59062064,86946.0,86945.0,0.0001694]
[1743133595531,1.89062064,86946.0,86945.0,0.0001694]
[1743133595788,2.98765564,86946.0,86945.0,0.0001694]
[1743133596336,2.98665564,86946.0,86945.0,0.0001694]
[1743133596537,2.98365564,86946.0,86945.0,0.0001694]
[1743133596751,2.98665564,86946.0,86945.0,0.0001694]
[1743133596986,2.98865564,86946.0,86945.0,0.0001694]
[1743133597385,2.99265564,86946.0,86945.0,0.0001694]
[1743133597649,3.01069177,86946.0,86945.0,0.0001694]
[1743133598021,3.01103057,86946.0,86945.0,0.0001694]
[1743133601516,3.13931057,86946.0,86945.0,0.0001694]
[1743133604583,3.12127444,86946.0,86945.0,0.0001694]
[1743133607719,3.13931035,86946.0,86945.0,0.0001694]
[1743133614718,3.12127444,86946.0,86945.0,0.0001694]
[1743133615699,3.23553208,86946.0,86945.0,0.0001694]
[1743133616114,3.27031911,86946.0,86945.0,0.0001694]
[1743133616691,1.82492111,86946.0,86945.0,0.0001694]
[1743133616901,3.27031911,86946.0,86945.0,0.0001694]
[1743133617226,3.26131911,86946.0,86945.0,0.0001694]
[1743133617443,3.15706147,86946.0,86945.0,0.0001694]
[1743133617739,3.17509823,86946.0,86945.0,0.0001694]
[1743133618323,3.04681823,86946.0,86945.0,0.0001694]
[1743133618544,3.17509823,86946.0,86945.0,0.0001694]
[1743133624601,3.15706147,86946.0,86945.0,0.0001694]
[1743133624786,3.27131911,86946.0,86945.0,0.0001694]
[1743133626207,3.26131911,86946.0,86945.0,0.0001694]
[1743133626873,3.27131911,86946.0,86945.0,0.0001694]
[1743133627096,3.26631911,86946.0,86945.0,0.0001694]
[1743133627243,3.26131911,86946.0,86945.0,0.0001694]
[1743133627448,1.82092111,86946.0,86945.0,0.0001694]
[1743133627628,3.28435652,86946.0,86945.0,0.0001694]
[1743133628639,3.28935652,86946.0,86945.0,0.0001694]
[1743133631192,3.17509888,86946.0,86945.0,0.0001694]
[1743133633401,3.09709888,86946.0,86945.0,0.0001694]
[1743133634716,3.07906147,86946.0,86945.0,0.0001694]
[1743133635503,2.95078147,86946.0,86945.0,0.0001694]
[1743133635735,3.07906147,86946.0,86945.0,0.0001694]
[1743133636130,2.95078147,86946.0,86945.0,0.0001694]
[1743133636355,3.07906147,86946.0,86945.0,0.0001694]
[1743133637741,3.09709829,86946.0,86945.0,0.0001694]
[1743133639213,3.20485283,86946.0,86945.0,0.0001694]
[1743133639481,3.09709829,86946.0,86945.0,0.0001694]
[1743133644056,2.96881829,86946.0,86945.0,0.0001694]
[1743133644362,3.09709829,86946.0,86945.0,0.0001694]
[1743133644502,3.07906147,86946.0,86945.0,0.0001694]
[1743133644702,2.90478147,86946.0,86945.0,0.0001694]
[1743133644931,3.03306147,86946.0,86945.0,0.0001694]
[1743133645530,2.90478147,86946.0,86945.0,0.0001694]
[1743133645764,3.03306147,86946.0,86945.0,0.0001694]
[1743133646167,2.90478147,86946.0,86945.0,0.0001694]
[1743133646326,3.03306147,86946.0,86945.0,0.0001694]
[1743133646831,2.90478147,86946.0,86945.0,0.0001694]
[1743133647423,3.03306147,86946.0,86945.0,0.0001694]
[1743133647662,3.05109782,86946.0,86945.0,0.0001694]
[1743133647857,2.92281782,86946.0,86945.0,0.0001694]
[1743133648056,3.05109782,86946.0,86945.0,0.0001694]
[1743133648339,2.92281782,86946.0,86945.0,0.0001694]
[1743133648498,3.05109782,86946.0,86945.0,0.0001694]
[1743133650395,2.92281782,86946.0,86945.0,0.0001694]
[1743133650589,3.05109782,86946.0,86945.0,0.0001694]
[1743133650951,2.92281782,86946.0,86945.0,0.0001694]
[1743133651133,3.05109782,86946.0,86945.0,0.0001694]
[1743133652282,2.92281782,86946.0,86945.0,0.0001694]
[1743133652599,3.05109782,86946.0,86945.0,0.0001694]
[1743133654221,2.92281782,86946.0,86945.0,0.0001694]
[1743133654596,1.3103388,86946.0,86945.0,0.0001694]
[1743133655667,1.3053388,86946.0,86945.0,0.0001694]
[1743133655779,1.3103388,86946.0,86945.0,0.0001694]
[1743133656430,1.3053388,86946.0,86945.0,0.0001694]
[1743133657406,1.3053388,86946.0,86945.0,0.0782694]
[1743133657629,1.32337451,86946.0,86945.0,0.0782694]
[1743133657832,1.32837451,86946.0,86945.0,0.0782694]
[1743133661852,1.32837451,86946.0,86945.0,0.0001694]
[1743133662071,1.44263215,86946.0,86945.0,0.0001694]
[1743133664413,1.32837451,86946.0,86945.0,0.0001694]
[1743133664774,1.3103388,86946.0,86945.0,0.0001694]
[1743133667802,1.32837446,86946.0,86945.0,0.0001694]
[1743133673960,1.32837446,86946.0,86945.0,0.0116704]
[1743133674210,1.32837446,86946.0,86945.0,0.0001694]
[1743133674583,1.3103388,86946.0,86945.0,0.0001694]
[1743133676616,1.3103388,86946.0,86945.0,0.0116704]
[1743133677155,1.3103388,86946.0,86945.0,0.0001694]
[1743133677850,1.32837444,86946.0,86945.0,0.0001694]
[1743133684658,1.3103388,86946.0,86945.0,0.0001694]
[1743133687681,1.32837441,86946.0,86945.0,0.0001694]
[1743133699112,1.3103388,86946.0,86945.0,0.0001694]
[1743133701694,1.32837441,86946.0,86945.0,0.0001694]
[1743133704277,1.55688969,86946.0,86945.0,0.0001694]
[1743133704502,3.16605293,86946.0,86945.0,0.0001694]
[1743133704709,3.15301732,86946.0,86945.0,0.0001694]
[1743133706372,2.61683368,86946.0,86945.0,0.0001694]
[1743133706546,2.78859368,86946.0,86945.0,0.0001694]
[1743133706751,2.56000768,86946.0,86945.0,0.0001694]
[1743133706975,1.3582388,86946.0,86945.0,0.0001694]
[1743133707178,1.4827248,86946.0,86945.0,0.0001694]
[1743133707652,1.50076115,86946.0,86945.0,0.0001694]
[1743133710303,1.37627515,86946.0,86945.0,0.0001694]
[1743133712542,1.37627515,86946.0,86945.0,0.2301994]
[1743133712762,1.37627515,86946.0,86945.0,0.0001694]
[1743133712924,1.37627515,86946.0,86945.0,0.2301994]
[1743133713118,1.32837515,86946.0,86945.0,0.2301994]
[1743133713322,1.32837515,86946.0,86945.0,0.0001694]
[1743133716050,1.44263279,86946.0,86945.0,0.0001694]
[1743133716282,1.52513279,86946.0,86945.0,0.0001694]
[1743133716488,1.55689644,86946.0,86945.0,0.0001694]
[1743133716690,3.00229444,86946.0,86945.0,0.0001694]
[1743133717619,3.03712592,86946.0,86945.0,0.0001694]
[1743133717827,3.05516238,86946.0,86945.0,0.0001694]
[1743133719380,3.16942002,86946.0,86945.0,0.0001694]
[1743133719719,3.05516238,86946.0,86945.0,0.0001694]
[1743133721850,1.60976438,86946.0,86945.0,0.0001694]
[1743133722049,3.05516238,86946.0,86945.0,0.0001694]
[1743133724765,3.03712592,86946.0,86945.0,0.0001694]
[1743133725169,3.00229444,86946.0,86945.0,0.0001694]
[1743133726383,3.08008426,86946.0,86945.0,0.0001694]
[1743133726737,3.03711729,86946.0,86945.0,0.0001694]
[1743133727640,3.05515373,86946.0,86945.0,0.0001694]
[1743133734702,3.03711729,86946.0,86945.0,0.0001694]
[1743133736645,3.16531729,86946.0,86945.0,0.0001694]
[1743133737637,3.18335378,86946.0,86945.0,0.0001694]
[1743133741036,1.73795578,86946.0,86945.0,0.0001694]
[1743133741403,3.18335378,86946.0,86945.0,0.0001694]
[1743133743372,3.10085378,86946.0,86945.0,0.0001694]
[1743133744837,3.08281729,86946.0,86945.0,0.0001694]
[1743133745456,3.16001729,86946.0,86945.0,0.0001694]
[1743133745680,3.27427493,86946.0,86945.0,0.0001694]
[1743133747647,3.29231261,86946.0,86945.0,0.0001694]
[1743133749674,3.39510191,86946.0,86945.0,0.0001694]
[1743133750483,1.94970391,86946.0,86945.0,0.0001694]
[1743133750653,3.39510191,86946.0,86945.0,0.0001694]
[1743133751811,1.94970391,86946.0,86945.0,0.0001694]
[1743133752021,3.39510191,86946.0,86945.0,0.0001694]
[1743133754858,3.37706423,86946.0,86945.0,0.0001694]
[1743133756283,3.38206423,86946.0,86945.0,0.0001694]
[1743133757010,3.37706423,86946.0,86945.0,0.0001694]
[1743133757410,3.38206423,86946.0,86945.0,0.0001694]
[1743133757727,3.39010191,86946.0,86945.0,0.0001694]
[1743133758127,3.40010191,86946.0,86945.0,0.0001694]
[1743133758611,3.39510191,86946.0,86945.0,0.0001694]
[1743133758822,3.28084427,86946.0,86945.0,0.0001694]
[1743133758999,3.28584427,86946.0,86945.0,0.0001694]
[1743133759456,3.28084427,86946.0,86945.0,0.0001694]